fUSD/lending_fUSD_20260116
["ID","MTS","AMOUNT","RATE_DAILY","PERIOD"]
[402120690,1768529460232,-500.0,0.0003589,10]
[402120691,1768529460241,-310.68799344,0.0003589,10]
[402120692,1768529460251,-500.0,0.0003589,10]
[402120693,1768529460260,-500.0,0.0003589,10]
[402120694,1768529460270,-990.39,0.0003589,10]
[402120695,1768529460279,-500.0,0.0003589,10]
[402120696,1768529460288,-535.79,0.0003589,10]
[402120697,1768529460297,-500.0,0.0003589,10]
[402120698,1768529460307,-500.0,0.0003589,10]
[402120699,1768529460317,-756.08,0.0003589,10]
[402120700,1768529460327,-1381.39,0.0003589,10]
[402120701,1768529460337,-500.0,0.0003589,10]
[402120702,1768529460347,-500.0,0.0003589,10]
[402120703,1768529460356,-500.0,0.0003589,10]
[402120704,1768529460365,-500.0,0.0003589,10]
[402120705,1768529460374,-500.0,0.0003589,10]
[402120706,1768529460382,-500.0,0.0003589,10]
[402120707,1768529460392,-500.0,0.0003589,10]
[402120708,1768529460401,-500.0,0.0003589,10]
[402120709,1768529460411,-741.74,0.0003589,10]
[402120710,1768529460430,-558.47,0.0003589,10]
[402120711,1768529460444,-500.0,0.0003589,10]
[402120712,1768529460453,-580.09,0.0003589,10]
[402120713,1768529460462,-831.24,0.0003589,10]
[402120714,1768529460471,-800.34,0.0003589,10]
[402120715,1768529460479,-500.0,0.0003589,10]
[402120716,1768529460490,-500.0,0.0003589,10]
[402120717,1768529460501,-1395.51,0.0003589,10]
[402120718,1768529460511,-517.74,0.0003589,10]
[402120719,1768529460520,-500.0,0.0003589,10]
[402120720,1768529460530,-500.0,0.0003589,10]
[402120721,1768529460539,-1027.56,0.0003589,10]
[402120722,1768529460549,-702.81,0.0003589,10]
[402120723,1768529460560,-513.39,0.0003589,10]
[402120724,1768529460570,-500.0,0.0003589,10]
[402120725,1768529460580,-500.0,0.0003589,10]
[402120726,1768529460590,-641.29,0.0003589,10]
[402120727,1768529460600,-500.0,0.0003589,10]
[402120728,1768529460610,-500.0,0.0003589,10]
[402120729,1768529460620,-616.88,0.0003589,10]
[402120730,1768529460630,-623.27,0.0003589,10]
[402120731,1768529460639,-257.26597899,0.0003589,10]
[402120732,1768529460649,-500.0,0.0003589,10]
[402120733,1768529460658,-500.0,0.0003589,10]
[402120734,1768529460677,-682.85,0.0003589,10]
[402120735,1768529460693,-500.0,0.0003589,10]
[402120736,1768529460707,-1082.46,0.0003589,10]
[402120737,1768529460724,-500.0,0.0003589,10]
[402120738,1768529460741,-500.0,0.0003589,10]
[402120739,1768529460756,-1092.39,0.0003589,10]
[402120740,1768529460770,-529.63715981,0.0003589,10]
[402120741,1768529460786,-500.0,0.0003589,10]
[402120742,1768529460805,-500.0,0.0003589,10]
[402120743,1768529460820,-500.0,0.0003589,10]
[402120744,1768529460837,-544.89,0.0003589,10]
[402120745,1768529460856,-579.72,0.0003589,10]
[402120746,1768529460872,-500.0,0.0003589,10]
[402120747,1768529460890,-535.2753636,0.0003589,10]
[402120748,1768529460906,-500.0,0.0003589,10]
[402120749,1768529460921,-500.0,0.0003589,10]
[402120750,1768529460936,-500.0,0.0003589,10]
[402120751,1768529460951,-500.0,0.0003589,10]
[402120752,1768529460963,-1514.61,0.0003589,10]
[402120753,1768529460981,-500.0,0.0003589,10]
[402120754,1768529460993,-500.0,0.0003589,10]
[402120755,1768529461007,-500.0,0.0003589,10]
[402120756,1768529461021,-634.0,0.0003589,10]
[402120757,1768529461035,-500.0,0.0003589,10]
[402120758,1768529461049,-500.0,0.0003589,10]
[402120759,1768529461063,-500.0,0.0003589,10]
[402120760,1768529461077,-631.92,0.0003589,10]
[402120761,1768529461091,-500.0,0.0003589,10]
[402120762,1768529461105,-500.0,0.0003589,10]
[402120763,1768529461119,-500.0,0.0003589,10]
[402120764,1768529461133,-674.16,0.0003589,10]
[402120765,1768529461147,-500.0,0.0003589,10]
[402120766,1768529461161,-500.0,0.0003589,10]
[402120767,1768529461175,-801.13,0.0003589,10]
[402120768,1768529461188,-500.0,0.0003589,10]
[402120769,1768529461202,-559.67160156,0.0003589,10]
[402120770,1768529461215,-500.0,0.0003589,10]
[402120771,1768529461230,-500.0,0.0003589,10]
[402120772,1768529461243,-500.0,0.0003589,10]
[402120773,1768529461256,-500.0,0.0003589,10]
[402120774,1768529461270,-500.0,0.0003589,10]
[402120775,1768529461283,-1689.87,0.0003589,10]
[402120776,1768529461297,-500.0,0.0003589,10]
[402120777,1768529461310,-500.0,0.0003589,10]
[402120778,1768529461324,-541.84247973,0.0003589,10]
[402120779,1768529461337,-626.18,0.0003589,10]
[402120780,1768529461357,-500.0,0.0003589,10]
[402120781,1768529461371,-500.0,0.0003589,10]
[402120782,1768529461384,-669.34,0.0003589,10]
[402120783,1768529461398,-500.0,0.0003589,10]
[402120784,1768529461412,-1168.3,0.0003589,10]
[402120785,1768529461425,-500.0,0.0003589,10]
[402120786,1768529461438,-934.58,0.0003589,10]
[402120787,1768529461453,-582.08,0.0003589,10]
[402120788,1768529461465,-500.0,0.0003589,10]
[402120789,1768529461479,-834.41,0.0003589,10]
[402120790,1768529461493,-626.41,0.0003589,10]
[402120791,1768529461507,-562.7990673,0.0003589,10]
[402120792,1768529461522,-500.0,0.0003589,10]
[402120793,1768529461536,-500.0,0.0003589,10]
[402120794,1768529461550,-414.88987842,0.0003589,10]
[402120795,1768529461565,-500.0,0.0003589,10]
[402120796,1768529461580,-604.95,0.0003589,10]
[402120797,1768529461594,-508.19086157,0.0003589,10]
[402120798,1768529461608,-706.07,0.0003589,10]
[402120799,1768529461622,-600.35,0.0003589,10]
[402120800,1768529461638,-853.24,0.0003589,10]
[402120801,1768529461652,-500.0,0.0003589,10]
[402120802,1768529461667,-500.0,0.0003589,10]
[402120803,1768529461680,-500.0,0.0003589,10]
[402120804,1768529461694,-580.58,0.0003589,10]
[402120805,1768529461708,-500.0,0.0003589,10]
[402120806,1768529461722,-894.65,0.0003589,10]
[402120807,1768529461736,-730.61,0.0003589,10]
[402120808,1768529461749,-1189.28,0.0003589,10]
[402120809,1768529461763,-500.0,0.0003589,10]
[402120810,1768529461778,-1137.72,0.0003589,5]
[402120811,1768529461792,-1355.17,0.0003589,10]
[402120812,1768529461805,-503.65137212,0.0003589,10]
[402120813,1768529461820,-500.0,0.0003589,10]
[402120814,1768529461833,-500.0,0.0003589,10]
[402120815,1768529461847,-921.03,0.0003589,10]
[402120816,1768529461860,-661.4,0.0003589,10]
[402120817,1768529461874,-507.26,0.0003589,10]
[402120818,1768529461887,-500.0,0.0003589,10]
[402120819,1768529461901,-861.76,0.0003589,10]
[402120820,1768529461915,-500.0,0.0003589,10]
[402120821,1768529461929,-500.0,0.0003589,10]
[402120822,1768529461944,-419.93497677,0.0003589,10]
[402120823,1768529461957,-500.0,0.0003589,10]
[402120824,1768529461971,-500.0,0.0003589,10]
[402120825,1768529461986,-669.7,0.0003589,10]
[402120826,1768529461999,-500.0,0.0003589,10]
[402120827,1768529462013,-500.0,0.0003589,10]
[402120828,1768529462028,-1223.78,0.0003589,10]
[402120829,1768529462041,-500.0,0.0003589,10]
[402120830,1768529462055,-658.51,0.0003589,10]
[402120831,1768529462069,-500.0,0.0003589,10]
[402120832,1768529462083,-500.0,0.0003589,10]
[402120833,1768529462096,-500.0,0.0003589,10]
[402120834,1768529462109,-711.6,0.0003589,10]
[402120835,1768529462123,-500.0,0.0003589,10]
[402120836,1768529462137,-500.0,0.0003589,10]
[402120837,1768529462150,-814.35,0.0003589,10]
[402120838,1768529462164,-505.81338198,0.0003589,10]
[402120839,1768529462177,-553.88,0.0003589,10]
[402120840,1768529462193,-500.0,0.0003589,10]
[402120841,1768529462210,-834.24,0.0003589,10]
[402120842,1768529462224,-500.0,0.0003589,10]
[402120843,1768529462238,-500.0,0.0003589,10]
[402120844,1768529462251,-708.67,0.0003589,10]
[402120845,1768529462265,-500.0,0.0003589,10]
[402120846,1768529462278,-500.0,0.0003589,10]
[402120847,1768529462291,-500.0,0.0003589,10]
[402120848,1768529462303,-500.0,0.0003589,10]
[402120849,1768529462317,-500.0,0.0003589,10]
[402120850,1768529462331,-604.49459981,0.0003589,10]
[402120851,1768529462345,-975.01,0.0003589,10]
[402120852,1768529462358,-844.67,0.0003589,10]
[402120853,1768529462374,-500.0,0.0003589,10]
[402120854,1768529462387,-500.0,0.0003589,10]
[402120855,1768529462400,-509.14826463,0.0003589,10]
[402120856,1768529462413,-565.52,0.0003589,10]
[402120857,1768529462427,-500.0,0.0003589,10]
[402120858,1768529462441,-500.0,0.0003589,10]
[402120859,1768529462454,-500.0,0.0003589,10]
[402120860,1768529462467,-500.0,0.0003589,10]
[402120861,1768529462481,-710.69,0.0003589,10]
[402120862,1768529462495,-500.0,0.0003589,10]
[402120863,1768529462508,-500.0,0.0003589,10]
[402120864,1768529462522,-500.0,0.0003589,10]
[402120865,1768529462535,-500.0,0.0003589,10]
[402120866,1768529462548,-500.0,0.0003589,10]
[402120867,1768529462561,-500.0,0.0003589,10]
[402120868,1768529462574,-500.0,0.0003589,10]
[402120869,1768529462588,-500.0,0.0003589,10]
[402120870,1768529462602,-500.0,0.0003589,10]
[402120871,1768529462617,-643.91,0.0003589,10]
[402120872,1768529462630,-500.0,0.0003589,10]
[402120873,1768529462644,-540.57,0.0003589,10]
[402120874,1768529462658,-995.51,0.0003589,10]
[402120875,1768529462671,-375.64307142,0.0003589,10]
[402120876,1768529462685,-500.0,0.0003589,10]
[402120877,1768529462700,-658.75,0.0003589,10]
[402120878,1768529462716,-798.75,0.0003589,10]
[402120879,1768529462726,-500.0,0.0003589,10]
[402120880,1768529462736,-730.02,0.0003589,10]
[402120881,1768529462745,-500.0,0.0003589,10]
[402120882,1768529462754,-500.0,0.0003589,120]
[402120883,1768529462764,-500.0,0.0003589,10]
[402120884,1768529462773,-564.51,0.0003589,10]
[402120885,1768529462783,-1111.81,0.0003589,10]
[402120886,1768529462792,-500.0,0.0003589,10]
[402120887,1768529462802,-785.73,0.0003589,10]
[402120888,1768529462817,-500.0,0.0003589,10]
[402120889,1768529462831,-500.0,0.0003589,10]
[402120890,1768529462841,-500.0,0.0003589,10]
[402120891,1768529462851,-500.0,0.0003589,10]
[402120892,1768529462862,-500.0,0.0003589,10]
[402120893,1768529462871,-679.02,0.0003589,10]
[402120894,1768529462881,-509.60172918,0.0003589,10]
[402120895,1768529462891,-573.41709126,0.0003589,10]
[402120896,1768529462900,-1193.62,0.0003589,10]
[402120897,1768529462909,-553.99,0.0003589,10]
[402120898,1768529463402,-500.0,0.0003589,10]
[402120899,1768529463442,-507.83178485,0.0003589,10]
[402120900,1768529463467,-500.0,0.0003589,10]
[402120901,1768529463477,-500.0,0.0003589,10]
[402120902,1768529463486,-507.04816196,0.0003589,10]
[402120903,1768529463495,-816.15,0.0003589,10]
[402120904,1768529463504,-505.03369429,0.0003589,10]
[402120905,1768529463513,-500.0,0.0003589,10]
[402120906,1768529463523,-1027.88,0.0003589,10]
[402120907,1768529463532,-500.0,0.0003589,10]
[402120908,1768529463541,-500.0,0.0003589,10]
[402120909,1768529463550,-500.0,0.0003589,10]
[402120910,1768529463559,-500.0,0.0003589,10]
[402120911,1768529463569,-564.60575279,0.0003589,10]
[402120912,1768529463579,-1337.07,0.0003589,10]
[402120913,1768529463588,-1563.91,0.0003589,10]
[402120914,1768529463597,-548.97,0.0003589,10]
[402120915,1768529463607,-500.0,0.0003589,10]
[402120916,1768529463617,-1053.84,0.0003589,2]
[402120917,1768529463627,-506.70196226,0.0003589,10]
[402120918,1768529463637,-500.0,0.0003589,10]
[402120919,1768529463646,-500.0,0.0003589,10]
[402120920,1768529463655,-1395.31,0.0003589,10]
[402120921,1768529463665,-500.0,0.0003589,10]
[402120922,1768529463675,-168.44563581,0.0003589,10]
[402120923,1768529463685,-500.0,0.0003589,10]
[402120924,1768529463694,-500.0,0.0003589,10]
[402120925,1768529463703,-500.0,0.0003589,10]
[402120926,1768529463713,-500.0,0.0003589,10]
[402120927,1768529463722,-526.48,0.0003589,10]
[402120928,1768529463732,-875.24,0.0003589,10]
[402120929,1768529463741,-504.9662868,0.0003589,10]
[402120930,1768529463750,-500.0,0.0003589,10]
[402120931,1768529463761,-635.68623596,0.0003589,10]
[402120932,1768529463771,-500.0,0.0003589,10]
[402120933,1768529463781,-595.45,0.0003589,10]
[402120934,1768529463791,-1146.99,0.0003589,10]
[402120935,1768529463800,-606.54,0.0003589,10]
[402120936,1768529463809,-512.93,0.0003589,10]
[402120937,1768529463819,-507.05821772,0.0003589,10]
[402120938,1768529463828,-519.63,0.0003589,10]
[402120939,1768529463837,-673.27,0.0003589,10]
[402120940,1768529463847,-511.04134465,0.0003589,10]
[402120941,1768529463856,-500.0,0.0003589,10]
[402120942,1768529463866,-433.6209861,0.0003589,10]
[402120943,1768529463876,-500.0,0.0003589,10]
[402120944,1768529463885,-505.30867579,0.0003589,10]
[402120945,1768529463894,-500.0,0.0003589,10]
[402120946,1768529463903,-1530.07,0.0003589,10]
[402120947,1768529463912,-500.0,0.0003589,10]
[402120948,1768529463922,-500.0,0.0003589,10]
[402120949,1768529463931,-946.1,0.0003589,10]
[402120950,1768529463940,-500.0,0.0003589,10]
[402120951,1768529463950,-500.0,0.0003589,10]
[402120952,1768529463959,-171.39609564,0.0003589,10]
[402120953,1768529463968,-585.05,0.0003589,10]
[402120954,1768529463977,-500.0,0.0003589,10]
[402120955,1768529463987,-761.81,0.0003589,10]
[402120956,1768529463996,-680.62,0.0003589,10]
[402120957,1768529464006,-500.0,0.0003589,10]
[402120958,1768529464016,-795.8,0.0003589,10]
[402120959,1768529464025,-500.0,0.0003589,10]
[402120960,1768529464034,-500.0,0.0003589,10]
[402120961,1768529464044,-573.52,0.0003589,10]
[402120962,1768529464053,-1111.0,0.0003589,10]
[402120963,1768529464062,-500.0,0.0003589,10]
[402120964,1768529464071,-500.0,0.0003589,10]
[402120965,1768529464080,-644.47,0.0003589,10]
[402120966,1768529464089,-500.0,0.0003589,10]
[402120967,1768529464099,-500.0,0.0003589,10]
[402120968,1768529464108,-579.06,0.0003589,10]
[402120969,1768529464118,-500.0,0.0003589,10]
[402120970,1768529464129,-500.0,0.0003589,10]
[402120971,1768529464138,-844.66,0.0003589,10]
[402120972,1768529464147,-1024.71,0.0003589,10]
[402120973,1768529464156,-500.0,0.0003589,10]
[402120974,1768529464166,-500.0,0.0003589,10]
[402120975,1768529464175,-500.0,0.0003589,10]
[402120976,1768529464184,-504.77141007,0.0003589,10]
[402120977,1768529464196,-2242.23,0.0003589,10]
[402120978,1768529464208,-537.68,0.0003589,10]
[402120979,1768529464218,-501.63976127,0.0003589,10]
[402120980,1768529464228,-638.35,0.0003589,10]
[402120981,1768529464238,-500.0,0.0003589,10]
[402120982,1768529464249,-1050.37,0.0003589,10]
[402120983,1768529464258,-500.0,0.0003589,10]
[402120984,1768529464268,-500.0,0.0003589,10]
[402120985,1768529464277,-500.0,0.0003589,10]
[402120986,1768529464286,-541.48,0.0003589,10]
[402120987,1768529464295,-696.61,0.0003589,10]
[402120988,1768529464305,-768.31,0.0003589,10]
[402120989,1768529464314,-814.57,0.0003589,10]
[402120990,1768529464327,-214.10769185,0.0003589,120]
[402120991,1768529464337,-500.0,0.0003589,10]
[402120992,1768529464347,-500.0,0.0003589,10]
[402120993,1768529464356,-908.75,0.0003589,10]
[402120994,1768529464365,-507.78235582,0.0003589,10]
[402120995,1768529464375,-554.03648991,0.0003589,10]
[402120996,1768529464384,-561.57,0.0003589,10]
[402120997,1768529464394,-500.0,0.0003589,10]
[402120998,1768529464405,-500.0,0.0003589,10]
[402120999,1768529464414,-571.19,0.0003589,10]
[402121000,1768529464424,-500.0,0.0003589,10]
[402121001,1768529464434,-508.32719942,0.0003589,10]
[402121002,1768529464444,-500.0,0.0003589,10]
[402121003,1768529464454,-500.0,0.0003589,10]
[402121004,1768529464463,-743.24,0.0003589,10]
[402121005,1768529464474,-502.09787395,0.0003589,10]
[402121006,1768529464483,-500.0,0.0003589,10]
[402121007,1768529464493,-504.48854073,0.0003589,10]
[402121008,1768529464503,-502.09665324,0.0003589,10]
[402121009,1768529464512,-643.54,0.0003589,10]
[402121010,1768529464522,-628.54,0.0003589,10]
[402121011,1768529464532,-500.0,0.0003589,10]
[402121012,1768529464542,-592.9,0.0003589,10]
[402121013,1768529464551,-510.14457932,0.0003589,10]
[402121014,1768529464560,-591.02,0.0003589,10]
[402121015,1768529464570,-552.63930445,0.0003589,10]
[402121016,1768529464580,-510.18873639,0.0003589,10]
[402121017,1768529464590,-1133.3,0.0003589,10]
[402121018,1768529464600,-500.0,0.0003589,10]
[402121019,1768529464609,-500.0,0.0003589,10]
[402121020,1768529464618,-500.0,0.0003589,10]
[402121021,1768529464628,-510.07905672,0.0003589,10]
[402121022,1768529464639,-500.0,0.0003589,10]
[402121023,1768529464648,-500.0,0.0003589,10]
[402121024,1768529464658,-505.47881786,0.0003589,10]
[402121025,1768529464669,-687.79,0.0003589,10]
[402121026,1768529464679,-1114.69,0.0003589,10]
[402121027,1768529464689,-658.76,0.0003589,10]
[402121028,1768529464698,-500.0,0.0003589,10]
[402121029,1768529464708,-675.6,0.0003589,10]
[402121030,1768529464717,-500.0,0.0003589,10]
[402121031,1768529464728,-694.88,0.0003589,10]
[402121032,1768529464737,-521.39,0.0003589,10]
[402121033,1768529464747,-500.0,0.0003589,10]
[402121034,1768529464757,-500.0,0.0003589,10]
[402121035,1768529464767,-1033.86,0.0003589,10]
[402121036,1768529464777,-500.0,0.0003589,10]
[402121037,1768529464786,-1182.98,0.0003589,10]
[402121038,1768529464796,-500.0,0.0003589,10]
[402121039,1768529464806,-500.0,0.0003589,10]
[402121040,1768529464816,-500.0,0.0003589,10]
[402121041,1768529464827,-1715.22,0.0003589,10]
[402121042,1768529464836,-500.0,0.0003589,10]
[402121043,1768529464846,-561.51540706,0.0003589,10]
[402121044,1768529464855,-528.67,0.0003589,10]
[402121045,1768529464864,-500.0,0.0003589,10]
[402121046,1768529464874,-500.0,0.0003589,10]
[402121047,1768529464883,-500.0,0.0003589,10]
[402121048,1768529464892,-1115.87,0.0003589,10]
[402121049,1768529464901,-500.0,0.0003589,10]
[402121050,1768529464910,-653.74,0.0003589,10]
[402121051,1768529464919,-500.0,0.0003589,10]
[402121052,1768529464928,-500.0,0.0003589,10]
[402121053,1768529464938,-1247.89,0.0003589,10]
[402121054,1768529464947,-688.21,0.0003589,10]
[402121055,1768529464956,-500.0,0.0003589,10]
[402121056,1768529464965,-322.33559329,0.0003589,10]
[402121057,1768529464974,-871.33,0.0003589,10]
[402121058,1768529464983,-500.0,0.0003589,10]
[402121059,1768529464992,-500.0,0.0003589,10]
[402121060,1768529465001,-500.0,0.0003589,10]
[402121061,1768529465010,-632.73,0.0003589,10]
[402121062,1768529465019,-2074.51,0.0003589,10]
[402121063,1768529465029,-500.0,0.0003589,10]
[402121064,1768529465044,-601.75,0.0003589,10]
[402121065,1768529465053,-500.0,0.0003589,10]
[402121066,1768529465062,-746.46,0.0003589,10]
[402121067,1768529465071,-500.0,0.0003589,10]
[402121068,1768529465080,-704.78,0.0003589,10]
[402121069,1768529465090,-500.0,0.0003589,10]
[402121070,1768529465099,-826.43,0.0003589,10]
[402121071,1768529465108,-500.0,0.0003589,10]
[402121072,1768529465117,-500.0,0.0003589,10]
[402121073,1768529465127,-510.29105798,0.0003589,10]
[402121074,1768529465136,-771.84,0.0003589,10]
[402121075,1768529465145,-712.11,0.0003589,10]
[402121076,1768529465155,-500.0,0.0003589,10]
[402121077,1768529465164,-1267.39,0.0003589,10]
[402121078,1768529465173,-500.0,0.0003589,10]
[402121079,1768529465182,-506.49267699,0.0003589,10]
[402121080,1768529465194,-594.78,0.0003589,10]
[402121081,1768529465203,-509.96187181,0.0003589,10]
[402121082,1768529465212,-500.0,0.0003589,10]
[402121083,1768529465221,-557.51,0.0003589,10]
[402121084,1768529465231,-1061.23,0.0003589,10]
[402121085,1768529465240,-722.76,0.0003589,10]
[402121086,1768529465249,-500.0,0.0003589,10]
[402121087,1768529465258,-151.0,0.0003589,31]
[402121088,1768529465269,-500.0,0.0003589,10]
[402121089,1768529465278,-626.91,0.0003589,10]
[402121090,1768529465288,-552.98,0.0003589,10]
[402121091,1768529465297,-500.0,0.0003589,10]
[402121092,1768529465306,-500.0,0.0003589,10]
[402121093,1768529465316,-300.0,0.0003589,2]
[402121094,1768529465325,-500.0,0.0003589,10]
[402121095,1768529465334,-1252.63,0.0003589,10]
[402121096,1768529465343,-500.0,0.0003589,10]
[402121097,1768529465352,-637.22,0.0003589,10]
[402121098,1768529465361,-500.0,0.0003589,10]
[402121099,1768529465371,-500.0,0.0003589,10]
[402121100,1768529465380,-500.0,0.0003589,10]
[402121101,1768529465390,-658.19,0.0003589,10]
[402121102,1768529465399,-500.0,0.0003589,10]
[402121103,1768529465408,-935.53,0.0003589,10]
[402121104,1768529465417,-500.0,0.0003589,10]
[402121105,1768529465426,-500.0,0.0003589,10]
[402121106,1768529465436,-505.48334419,0.0003589,10]
[402121107,1768529465445,-1000.0,0.0003589,10]
[402121108,1768529465455,-500.0,0.0003589,10]
[402121109,1768529465464,-500.0,0.0003589,10]
[402121110,1768529465474,-1278.48,0.0003589,10]
[402121111,1768529465483,-500.0,0.0003589,10]
[402121112,1768529465493,-772.62,0.0003589,10]
[402121113,1768529465503,-2596.47,0.0003589,10]
[402121114,1768529465513,-518.29700047,0.0003589,10]
[402121115,1768529465523,-1044.25,0.0003589,10]
[402121116,1768529465532,-540.98,0.0003589,10]
[402121117,1768529465541,-1034.79,0.0003589,10]
[402121118,1768529465550,-500.0,0.0003589,10]
[402121119,1768529465560,-500.0,0.0003589,10]
[402121120,1768529465569,-500.0,0.0003589,10]
[402121121,1768529465579,-507.98417265,0.0003589,10]
[402121122,1768529465588,-500.0,0.0003589,10]
[402121123,1768529465597,-1267.44,0.0003589,10]
[402121124,1768529465607,-500.0,0.0003589,10]
[402121125,1768529465616,-979.07,0.0003589,10]
[402121126,1768529465625,-500.0,0.0003589,10]
[402121127,1768529465635,-696.04,0.0003589,10]
[402121128,1768529465644,-500.0,0.0003589,10]
[402121129,1768529465653,-233.55245146,0.0003589,10]
[402121130,1768529465662,-500.0,0.0003589,10]
[402121131,1768529465671,-512.39091371,0.0003589,10]
[402121132,1768529465681,-507.40552107,0.0003589,10]
[402121133,1768529465690,-1317.52,0.0003589,10]
[402121134,1768529465699,-754.81,0.0003589,10]
[402121135,1768529465708,-511.04981406,0.0003589,10]
[402121136,1768529465717,-858.34,0.0003589,10]
[402121137,1768529465727,-500.0,0.0003589,10]
[402121138,1768529465736,-661.84,0.0003589,10]
[402121139,1768529465746,-380.509999,0.0003589,28]
[402121140,1768529465755,-500.0,0.0003589,10]
[402121141,1768529465765,-506.42553316,0.0003589,10]
[402121142,1768529465774,-500.0,0.0003589,10]
[402121143,1768529465784,-733.71,0.0003589,10]
[402121144,1768529465793,-349.92775337,0.0003589,10]
[402121145,1768529465803,-380.509999,0.0003589,28]
[402121146,1768529465812,-380.509999,0.0003589,28]
[402121147,1768529465822,-500.0,0.0003589,10]
[402121148,1768529465831,-500.0,0.0003589,10]
[402121149,1768529465841,-890.89,0.0003589,10]
[402121150,1768529465851,-380.510005,0.0003589,28]
[402121151,1768529465861,-1982.33,0.0003589,10]
[402121152,1768529465871,-517.42,0.0003589,10]
[402121153,1768529465881,-500.0,0.0003589,10]
[402121154,1768529465891,-500.0,0.0003589,10]
[402121155,1768529465902,-500.0,0.0003589,10]
[402121156,1768529465911,-271.64530523,0.0003589,10]
[402121157,1768529465921,-500.0,0.0003589,10]
[402121158,1768529465930,-500.0,0.0003589,10]
[402121159,1768529465941,-1022.34,0.0003589,10]
[402121160,1768529465950,-500.0,0.0003589,10]
[402121161,1768529465960,-1689.93,0.0003589,10]
[402121162,1768529465970,-1043.41,0.0003589,10]
[402121163,1768529465988,-650.83,0.0003589,10]
[402121164,1768529466000,-500.0,0.0003589,10]
[402121165,1768529466011,-1998.84,0.0003589,10]
[402121166,1768529466020,-506.06110847,0.0003589,10]
[402121167,1768529466034,-500.0,0.0003589,10]
[402121168,1768529466044,-1278.53,0.0003589,10]
[402121169,1768529466055,-371.15578546,0.0003589,10]
[402121170,1768529466065,-500.0,0.0003589,10]
[402121171,1768529466075,-500.0,0.0003589,10]
[402121172,1768529466085,-500.0,0.0003589,10]
[402121173,1768529466096,-711.68,0.0003589,10]
[402121174,1768529466106,-2431.65,0.0003589,10]
[402121175,1768529466116,-500.0,0.0003589,10]
[402121176,1768529466126,-500.0,0.0003589,10]
[402121177,1768529466136,-1096.15,0.0003589,10]
[402121178,1768529466146,-1026.38,0.0003589,10]
[402121179,1768529466155,-1185.03,0.0003589,10]
[402121180,1768529466165,-551.21,0.0003589,10]
[402121181,1768529466175,-500.0,0.0003589,10]
[402121182,1768529466184,-1296.7,0.0003589,10]
[402121183,1768529466195,-691.87,0.0003589,10]
[402121184,1768529466206,-1586.52,0.0003589,10]
[402121185,1768529466230,-500.0,0.0003589,10]
[402121186,1768529466250,-685.86,0.0003589,10]
[402121187,1768529466260,-886.14,0.0003589,10]
[402121188,1768529466271,-500.0,0.0003589,10]
[402121189,1768529466281,-802.54,0.0003589,10]